[Event "Late-Titled-Tuesday-Blitz-March-26-2024"]
[Site "Chess.com"]
[Date "2024.03.26"]
[Round "3"]
[White "cristiano78"]
[Black "LikeWater"]
[Result "0-1"]
[WhiteElo "2240"]
[BlackElo "2713"]
[TimeControl "180+1"]
[EndTime "14:30:05 PDT"]
[Termination "LikeWater won by resignation"]

1. d4 {[%clk 0:02:59.4]} 1... Nf6 {[%clk 0:02:59.5]} 2. c4 {[%clk 0:02:58.2]}
2... g6 {[%clk 0:02:59.6]} 3. Nc3 {[%clk 0:02:54.7]} 3... Bg7 {[%clk 0:02:59.4]}
4. Nf3 {[%clk 0:02:54.2]} 4... d6 {[%clk 0:02:57.3]} 5. e4 {[%clk 0:02:54.3]}
5... O-O {[%clk 0:02:57.1]} 6. Be2 {[%clk 0:02:48.4]} 6... a5 {[%clk 0:02:56.9]}
7. O-O {[%clk 0:02:47]} 7... a4 {[%clk 0:02:56.9]} 8. h3 {[%clk 0:02:42.8]} 8...
e5 {[%clk 0:02:49]} 9. d5 {[%clk 0:02:36.2]} 9... c6 {[%clk 0:02:39.4]} 10. Be3
{[%clk 0:02:33.7]} 10... Qa5 {[%clk 0:02:25.4]} 11. dxc6 {[%clk 0:02:26.2]}
11... a3 {[%clk 0:02:20.1]} 12. Nd5 {[%clk 0:02:07.4]} 12... Nxd5 {[%clk
0:02:14.3]} 13. cxd5 {[%clk 0:02:03.6]} 13... axb2 {[%clk 0:02:10.5]} 14. Rb1
{[%clk 0:01:50.8]} 14... bxc6 {[%clk 0:02:07.2]} 15. Rxb2 {[%clk 0:01:43.5]}
15... cxd5 {[%clk 0:02:06.6]} 16. exd5 {[%clk 0:01:32]} 16... e4 {[%clk
0:02:00.9]} 17. Nd4 {[%clk 0:01:31.3]} 17... Qxd5 {[%clk 0:01:59.2]} 18. Rd2
{[%clk 0:01:24.9]} 18... Rxa2 {[%clk 0:01:52.2]} 19. Rxa2 {[%clk 0:00:57.9]}
19... Qxa2 {[%clk 0:01:53.1]} 20. Qc1 {[%clk 0:00:55.8]} 20... Bxd4 {[%clk
0:01:40.5]} 21. Bxd4 {[%clk 0:00:54.5]} 21... Qxe2 {[%clk 0:01:39.8]} 22. Qh6
{[%clk 0:00:54.1]} 22... f6 {[%clk 0:01:40.1]} 23. Qf4 {[%clk 0:00:48.1]} 23...
Nc6 {[%clk 0:01:30.6]} 24. Ba1 {[%clk 0:00:42.4]} 24... Ne5 {[%clk 0:01:27.9]}
25. Qc1 {[%clk 0:00:31.7]} 25... Ba6 {[%clk 0:01:11.7]} 26. Re1 {[%clk 0:00:29]}
26... Nd3 {[%clk 0:00:47.6]} 27. Rxe2 {[%clk 0:00:14.9]} 27... Nxc1 {[%clk
0:00:47.5]} 28. Rxe4 {[%clk 0:00:15]} 28... Nb3 {[%clk 0:00:44.1]} 29. Bb2
{[%clk 0:00:14.2]} 29... Kf7 {[%clk 0:00:37.4]} 30. Ra4 {[%clk 0:00:13.6]} 30...
Nc5 {[%clk 0:00:37.2]} 31. Rf4 {[%clk 0:00:10.6]} 31... f5 {[%clk 0:00:33.7]}
32. Ba3 {[%clk 0:00:07.6]} 32... Rb8 {[%clk 0:00:27.5]} 33. Rd4 {[%clk
0:00:07.9]} 33... Ke6 {[%clk 0:00:23.8]} 34. Rd1 {[%clk 0:00:06.4]} 34... Rb3
{[%clk 0:00:21.5]} 35. Bxc5 {[%clk 0:00:05.7]} 35... dxc5 {[%clk 0:00:21.4]} 36.
Ra1 {[%clk 0:00:06.3]} 36... Bb7 {[%clk 0:00:19.6]} 37. Re1+ {[%clk 0:00:06.7]}
37... Kd6 {[%clk 0:00:19.2]} 38. f4 {[%clk 0:00:07]} 38... c4 {[%clk 0:00:18.2]}
39. g4 {[%clk 0:00:07.6]} 39... Rxh3 {[%clk 0:00:16]} 40. gxf5 {[%clk
0:00:06.7]} 40... Rh1+ {[%clk 0:00:15.5]} 41. Kf2 {[%clk 0:00:06.3]} 41... Rxe1
{[%clk 0:00:16.4]} 42. Kxe1 {[%clk 0:00:06.6]} 42... gxf5 {[%clk 0:00:16.5]} 0-1

[Event "Late-Titled-Tuesday-Blitz-March-26-2024"]
[Site "Chess.com"]
[Date "2024.03.26"]
[Round "3"]
[White "stolencandy13"]
[Black "kinga2008"]
[Result "1-0"]
[WhiteElo "2659"]
[BlackElo "2446"]
[TimeControl "180+1"]
[EndTime "14:30:05 PDT"]
[Termination "stolencandy13 won on time"]

1. d4 {[%clk 0:03:00.9]} 1... Nf6 {[%clk 0:02:59.3]} 2. Bf4 {[%clk 0:03:00.8]}
2... d5 {[%clk 0:02:56.9]} 3. e3 {[%clk 0:03:01.1]} 3... c5 {[%clk 0:02:52.2]}
4. c3 {[%clk 0:02:59.7]} 4... Nc6 {[%clk 0:02:44.4]} 5. Nd2 {[%clk 0:02:59.2]}
5... Bf5 {[%clk 0:02:40.7]} 6. Qb3 {[%clk 0:02:58.9]} 6... Qb6 {[%clk
0:02:39.1]} 7. Ngf3 {[%clk 0:02:51.2]} 7... e6 {[%clk 0:02:34.2]} 8. Qxb6 {[%clk
0:02:37.9]} 8... axb6 {[%clk 0:02:19.7]} 9. h3 {[%clk 0:02:37.5]} 9... cxd4
{[%clk 0:02:19.1]} 10. exd4 {[%clk 0:02:36.9]} 10... Kd7 {[%clk 0:02:15.5]} 11.
Bb5 {[%clk 0:02:34.2]} 11... Bd6 {[%clk 0:02:14.8]} 12. Ne5+ {[%clk 0:02:30.4]}
12... Bxe5 {[%clk 0:01:57.5]} 13. Bxe5 {[%clk 0:02:23.8]} 13... Ne8 {[%clk
0:01:56.4]} 14. g4 {[%clk 0:02:20.4]} 14... Bg6 {[%clk 0:01:55.3]} 15. a3 {[%clk
0:02:14.6]} 15... f6 {[%clk 0:01:53.1]} 16. Bg3 {[%clk 0:02:12.4]} 16... Nd6
{[%clk 0:01:40]} 17. Be2 {[%clk 0:02:07.4]} 17... Na5 {[%clk 0:01:24.9]} 18. O-O
{[%clk 0:01:50.8]} 18... h5 {[%clk 0:01:17.1]} 19. Kg2 {[%clk 0:01:38.8]} 19...
hxg4 {[%clk 0:01:13]} 20. hxg4 {[%clk 0:01:38.6]} 20... Nac4 {[%clk 0:00:54.8]}
21. Nxc4 {[%clk 0:01:22.9]} 21... Nxc4 {[%clk 0:00:52.4]} 22. Bxc4 {[%clk
0:00:46.1]} 22... dxc4 {[%clk 0:00:53.3]} 23. Rfe1 {[%clk 0:00:46.2]} 23... Ra5
{[%clk 0:00:43.9]} 24. Re3 {[%clk 0:00:45.5]} 24... Rb5 {[%clk 0:00:37.3]} 25.
Rae1 {[%clk 0:00:40.2]} 25... Bf7 {[%clk 0:00:32.4]} 26. R1e2 {[%clk 0:00:39.4]}
26... Rg5 {[%clk 0:00:19.6]} 27. f3 {[%clk 0:00:38.8]} 27... Re8 {[%clk
0:00:16]} 28. Re4 {[%clk 0:00:38.1]} 28... Bg6 {[%clk 0:00:14.1]} 29. R4e3
{[%clk 0:00:36]} 29... Bd3 {[%clk 0:00:14.6]} 30. Rd2 {[%clk 0:00:34.2]} 30...
Bb1 {[%clk 0:00:15.3]} 31. Re1 {[%clk 0:00:33.9]} 31... Bh7 {[%clk 0:00:12.7]}
32. Rh1 {[%clk 0:00:31.2]} 32... Bd3 {[%clk 0:00:12.8]} 33. Bf4 {[%clk
0:00:30.4]} 33... Rd5 {[%clk 0:00:11.9]} 34. Kg3 {[%clk 0:00:30.4]} 34... e5
{[%clk 0:00:11.7]} 35. dxe5 {[%clk 0:00:26.8]} 35... fxe5 {[%clk 0:00:12.6]} 36.
Be3 {[%clk 0:00:25.6]} 36... e4 {[%clk 0:00:07]} 37. f4 {[%clk 0:00:25.8]} 37...
b5 {[%clk 0:00:06.8]} 38. Rh7 {[%clk 0:00:24.7]} 38... Re7 {[%clk 0:00:06.7]}
39. Rdh2 {[%clk 0:00:24.3]} 39... g6 {[%clk 0:00:03.4]} 40. Rxe7+ {[%clk
0:00:22.1]} 40... Kxe7 {[%clk 0:00:04]} 41. Bd4 {[%clk 0:00:21.4]} 41... Bb1
{[%clk 0:00:02.8]} 42. Rh7+ {[%clk 0:00:21.1]} 42... Kd8 {[%clk 0:00:03.1]} 43.
Rxb7 {[%clk 0:00:21.3]} 43... e3 {[%clk 0:00:01.2]} 44. Kf3 {[%clk 0:00:18.5]}
1-0

[Event "Late-Titled-Tuesday-Blitz-March-26-2024"]
[Site "Chess.com"]
[Date "2024.03.26"]
[Round "3"]
[White "Shahdad2007"]
[Black "SharathRk6"]
[Result "1-0"]
[WhiteElo "2635"]
[BlackElo "2423"]
[TimeControl "180+1"]
[EndTime "14:30:10 PDT"]
[Termination "Shahdad2007 won by resignation"]

1. Nf3 {[%clk 0:03:00.9]} 1... Nf6 {[%clk 0:02:54.7]} 2. g3 {[%clk 0:03:00.3]}
2... g6 {[%clk 0:02:53.9]} 3. Bg2 {[%clk 0:03:00.2]} 3... Bg7 {[%clk 0:02:54.2]}
4. O-O {[%clk 0:03:00.7]} 4... O-O {[%clk 0:02:53.7]} 5. c4 {[%clk 0:02:58.4]}
5... c5 {[%clk 0:02:53]} 6. Nc3 {[%clk 0:02:53.9]} 6... Nc6 {[%clk 0:02:53]} 7.
d4 {[%clk 0:02:54.2]} 7... cxd4 {[%clk 0:02:52.8]} 8. Nxd4 {[%clk 0:02:55.1]}
8... Nxd4 {[%clk 0:02:50.8]} 9. Qxd4 {[%clk 0:02:54.6]} 9... d6 {[%clk
0:02:51.1]} 10. e4 {[%clk 0:02:46.9]} 10... Nd7 {[%clk 0:02:49.9]} 11. Qd3
{[%clk 0:02:35.7]} 11... Nc5 {[%clk 0:02:48.8]} 12. Qe2 {[%clk 0:02:32.8]} 12...
Bd7 {[%clk 0:02:48.8]} 13. Be3 {[%clk 0:02:31.4]} 13... Bc6 {[%clk 0:02:15.5]}
14. Rfd1 {[%clk 0:01:35.7]} 14... b6 {[%clk 0:01:52.7]} 15. Bd4 {[%clk
0:01:17.3]} 15... Bxd4 {[%clk 0:01:28.3]} 16. Rxd4 {[%clk 0:01:18.2]} 16... e5
{[%clk 0:01:28.4]} 17. Rd2 {[%clk 0:01:17.5]} 17... Ne6 {[%clk 0:01:29]} 18.
Rad1 {[%clk 0:01:13.5]} 18... Nd4 {[%clk 0:01:26.6]} 19. Qe3 {[%clk 0:01:12.1]}
19... Qe7 {[%clk 0:01:22.3]} 20. Ne2 {[%clk 0:01:11.1]} 20... Nxe2+ {[%clk
0:01:21.1]} 21. Qxe2 {[%clk 0:01:12]} 21... Rad8 {[%clk 0:01:16.7]} 22. h4
{[%clk 0:01:11.3]} 22... Rd7 {[%clk 0:00:54.4]} 23. Qe3 {[%clk 0:01:04.9]} 23...
Rfd8 {[%clk 0:00:50.9]} 24. Qa3 {[%clk 0:01:01.5]} 24... Qe6 {[%clk 0:00:42.4]}
25. b3 {[%clk 0:00:59.3]} 25... a5 {[%clk 0:00:28.1]} 26. Kh2 {[%clk 0:00:57.9]}
26... Kg7 {[%clk 0:00:26.9]} 27. Qb2 {[%clk 0:00:49.6]} 27... b5 {[%clk
0:00:21]} 28. Bh3 {[%clk 0:00:46.1]} 28... f5 {[%clk 0:00:19.6]} 29. exf5 {[%clk
0:00:36.6]} 29... gxf5 {[%clk 0:00:20.1]} 30. cxb5 {[%clk 0:00:36.8]} 30... Bxb5
{[%clk 0:00:20.3]} 31. f4 {[%clk 0:00:37.3]} 31... Kg6 {[%clk 0:00:16.4]} 32.
fxe5 {[%clk 0:00:36.9]} 32... dxe5 {[%clk 0:00:16.5]} 33. Rxd7 {[%clk
0:00:35.1]} 33... Rxd7 {[%clk 0:00:17]} 34. Rxd7 {[%clk 0:00:34.2]} 34... Bxd7
{[%clk 0:00:17]} 35. Qd2 {[%clk 0:00:30.8]} 35... a4 {[%clk 0:00:17.3]} 36. bxa4
{[%clk 0:00:29.6]} 36... Bxa4 {[%clk 0:00:15.3]} 37. Qg5+ {[%clk 0:00:29.5]}
37... Kf7 {[%clk 0:00:15.8]} 38. Qxf5+ {[%clk 0:00:24.2]} 38... Qxf5 {[%clk
0:00:16.1]} 39. Bxf5 {[%clk 0:00:25.1]} 39... h6 {[%clk 0:00:16.5]} 40. Kg2
{[%clk 0:00:24.7]} 40... Kf6 {[%clk 0:00:17.1]} 41. Be4 {[%clk 0:00:24.3]} 41...
Ke7 {[%clk 0:00:16.1]} 42. Kf3 {[%clk 0:00:24.3]} 42... Kd6 {[%clk 0:00:16.5]}
43. Kg4 {[%clk 0:00:23.9]} 43... Ke7 {[%clk 0:00:13.7]} 44. Kf5 {[%clk
0:00:23.6]} 44... Kd6 {[%clk 0:00:11.6]} 45. Kf6 {[%clk 0:00:24]} 45... Be8
{[%clk 0:00:10.6]} 46. a3 {[%clk 0:00:23.2]} 46... h5 {[%clk 0:00:09]} 47. Bf3
{[%clk 0:00:22.2]} 47... Kc5 {[%clk 0:00:04]} 48. Kxe5 {[%clk 0:00:22.2]} 48...
Kb5 {[%clk 0:00:04.6]} 49. Kf6 {[%clk 0:00:22.6]} 49... Ka4 {[%clk 0:00:05.5]}
50. Kg5 {[%clk 0:00:23.5]} 1-0

[Event "Late-Titled-Tuesday-Blitz-March-26-2024"]
[Site "Chess.com"]
[Date "2024.03.26"]
[Round "3"]
[White "GothamChess"]
[Black "nj123456"]
[Result "1-0"]
[WhiteElo "2681"]
[BlackElo "2463"]
[TimeControl "180+1"]
[EndTime "14:30:13 PDT"]
[Termination "GothamChess won by checkmate"]

1. d4 {[%clk 0:02:48.8]} 1... d5 {[%clk 0:02:59.1]} 2. Nf3 {[%clk 0:02:41.9]}
2... Nf6 {[%clk 0:02:58.5]} 3. Bf4 {[%clk 0:02:40.7]} 3... c5 {[%clk 0:02:58.3]}
4. e3 {[%clk 0:02:37.6]} 4... Nc6 {[%clk 0:02:58.3]} 5. Nbd2 {[%clk 0:02:35.6]}
5... e6 {[%clk 0:02:58.5]} 6. c3 {[%clk 0:02:33]} 6... Bd6 {[%clk 0:02:58.2]} 7.
Bg3 {[%clk 0:02:32.5]} 7... O-O {[%clk 0:02:58]} 8. Be2 {[%clk 0:02:32.2]} 8...
b6 {[%clk 0:02:58]} 9. O-O {[%clk 0:02:31.3]} 9... Bb7 {[%clk 0:02:57.8]} 10. a4
{[%clk 0:02:30.5]} 10... Ne7 {[%clk 0:02:57.6]} 11. Bxd6 {[%clk 0:02:16.5]}
11... Qxd6 {[%clk 0:02:57.5]} 12. Ne5 {[%clk 0:02:17.2]} 12... Ne4 {[%clk
0:02:17.9]} 13. Nxe4 {[%clk 0:02:10.1]} 13... dxe4 {[%clk 0:02:18.8]} 14. a5
{[%clk 0:01:56.9]} 14... cxd4 {[%clk 0:02:11]} 15. Qxd4 {[%clk 0:01:44.8]} 15...
Qc7 {[%clk 0:02:01.4]} 16. a6 {[%clk 0:01:31.5]} 16... Bd5 {[%clk 0:01:49.5]}
17. c4 {[%clk 0:01:12.3]} 17... Nf5 {[%clk 0:01:44.5]} 18. Qc3 {[%clk
0:01:08.7]} 18... Bc6 {[%clk 0:01:39.7]} 19. Rfd1 {[%clk 0:01:05]} 19... Rad8
{[%clk 0:01:36.7]} 20. Nxc6 {[%clk 0:00:59]} 20... Qxc6 {[%clk 0:01:36.4]} 21.
b4 {[%clk 0:00:58.7]} 21... h6 {[%clk 0:01:31.6]} 22. g3 {[%clk 0:00:57.3]}
22... Qc7 {[%clk 0:01:23.5]} 23. c5 {[%clk 0:00:48.2]} 23... bxc5 {[%clk
0:01:21.9]} 24. bxc5 {[%clk 0:00:48.5]} 24... Rc8 {[%clk 0:01:21.8]} 25. Rdc1
{[%clk 0:00:43.3]} 25... Rfd8 {[%clk 0:01:18.9]} 26. Ra4 {[%clk 0:00:37.3]}
26... Qc6 {[%clk 0:01:17.4]} 27. Qa5 {[%clk 0:00:22.9]} 27... Rd5 {[%clk
0:01:10.5]} 28. Rac4 {[%clk 0:00:23.1]} 28... Ne7 {[%clk 0:00:56.4]} 29. R4c2
{[%clk 0:00:21.1]} 29... Rd7 {[%clk 0:00:54.8]} 30. Bb5 {[%clk 0:00:16]} 30...
Qc7 {[%clk 0:00:55.2]} 31. Qa4 {[%clk 0:00:15]} 31... Rdd8 {[%clk 0:00:53.8]}
32. Qxe4 {[%clk 0:00:14.9]} 32... Nd5 {[%clk 0:00:52.3]} 33. Bc4 {[%clk
0:00:12.1]} 33... Nb4 {[%clk 0:00:52]} 34. Bxe6 {[%clk 0:00:10.8]} 34... Nxc2
{[%clk 0:00:37.3]} 35. Bxc8 {[%clk 0:00:10.8]} 35... Nxe3 {[%clk 0:00:37.5]} 36.
Bb7 {[%clk 0:00:04.7]} 36... Nd1 {[%clk 0:00:30.7]} 37. Bd5 {[%clk 0:00:02.3]}
37... Nb2 {[%clk 0:00:22]} 38. c6 {[%clk 0:00:02.7]} 38... Qd6 {[%clk
0:00:15.5]} 39. Bb3 {[%clk 0:00:02.1]} 39... Nd3 {[%clk 0:00:09.8]} 40. Rd1
{[%clk 0:00:01.8]} 40... Kf8 {[%clk 0:00:03]} 41. c7 {[%clk 0:00:01.7]} 41...
Qxc7 {[%clk 0:00:02.9]} 42. Rxd3 {[%clk 0:00:02.1]} 42... Re8 {[%clk 0:00:02.6]}
43. Qf3 {[%clk 0:00:02]} 43... Qc1+ {[%clk 0:00:02.6]} 44. Rd1 {[%clk
0:00:02.3]} 44... Qc5 {[%clk 0:00:02.1]} 45. Qxf7# {[%clk 0:00:01.9]} 1-0

[Event "Late-Titled-Tuesday-Blitz-March-26-2024"]
[Site "Chess.com"]
[Date "2024.03.26"]
[Round "3"]
[White "PapaieDudu"]
[Black "Zq1"]
[Result "0-1"]
[WhiteElo "2427"]
[BlackElo "2636"]
[TimeControl "180+1"]
[EndTime "14:30:18 PDT"]
[Termination "Zq1 won on time"]

1. Nf3 {[%clk 0:03:00.4]} 1... Nf6 {[%clk 0:02:58.5]} 2. d4 {[%clk 0:02:59]}
2... e6 {[%clk 0:02:57.1]} 3. c4 {[%clk 0:02:59.2]} 3... a6 {[%clk 0:02:57.1]}
4. Nc3 {[%clk 0:02:59.4]} 4... c5 {[%clk 0:02:57.1]} 5. Bg5 {[%clk 0:02:56]}
5... cxd4 {[%clk 0:02:55.8]} 6. Nxd4 {[%clk 0:02:54.2]} 6... Qc7 {[%clk
0:02:52]} 7. g3 {[%clk 0:02:43.8]} 7... Be7 {[%clk 0:02:47]} 8. Bg2 {[%clk
0:02:43]} 8... d6 {[%clk 0:02:46.9]} 9. Rc1 {[%clk 0:02:43.2]} 9... Nbd7 {[%clk
0:02:46.3]} 10. O-O {[%clk 0:02:43.4]} 10... O-O {[%clk 0:02:45.5]} 11. e4
{[%clk 0:02:43.1]} 11... Rb8 {[%clk 0:02:41.6]} 12. f4 {[%clk 0:02:42.3]} 12...
h6 {[%clk 0:02:37]} 13. Bh4 {[%clk 0:02:41.8]} 13... b6 {[%clk 0:02:34.2]} 14.
f5 {[%clk 0:02:39.3]} 14... Ne5 {[%clk 0:02:31]} 15. b3 {[%clk 0:02:32.8]} 15...
Bd7 {[%clk 0:02:29.9]} 16. Kh1 {[%clk 0:02:24.4]} 16... Qd8 {[%clk 0:02:29.3]}
17. Qe2 {[%clk 0:02:21.3]} 17... Qe8 {[%clk 0:02:15.4]} 18. a4 {[%clk
0:01:53.4]} 18... Qd8 {[%clk 0:02:13.7]} 19. h3 {[%clk 0:01:39.6]} 19... Nh7
{[%clk 0:02:12.5]} 20. Bxe7 {[%clk 0:01:36.9]} 20... Qxe7 {[%clk 0:02:12.6]} 21.
h4 {[%clk 0:01:27.8]} 21... Nc6 {[%clk 0:02:01.2]} 22. Nxc6 {[%clk 0:01:16.8]}
22... Bxc6 {[%clk 0:02:00.5]} 23. Qf3 {[%clk 0:01:11.8]} 23... Rfe8 {[%clk
0:01:44.9]} 24. Rce1 {[%clk 0:01:07.1]} 24... exf5 {[%clk 0:01:32.6]} 25. Qxf5
{[%clk 0:01:06.9]} 25... Qf6 {[%clk 0:01:32.5]} 26. Nd5 {[%clk 0:01:00.5]} 26...
Bxd5 {[%clk 0:01:24.3]} 27. Qxd5 {[%clk 0:00:58.2]} 27... Qe6 {[%clk 0:01:18.1]}
28. e5 {[%clk 0:00:52.1]} 28... dxe5 {[%clk 0:01:12.1]} 29. Qd2 {[%clk
0:00:13.2]} 29... Nf6 {[%clk 0:01:07.5]} 30. Qe2 {[%clk 0:00:09.3]} 30... b5
{[%clk 0:01:01.1]} 31. axb5 {[%clk 0:00:08.5]} 31... axb5 {[%clk 0:01:00.5]} 32.
Kh2 {[%clk 0:00:08.8]} 32... bxc4 {[%clk 0:00:56.9]} 33. bxc4 {[%clk 0:00:09]}
33... Rb3 {[%clk 0:00:54.8]} 34. Bh3 {[%clk 0:00:08.7]} 34... Qe7 {[%clk
0:00:48.3]} 35. Qd1 {[%clk 0:00:03.8]} 35... Reb8 {[%clk 0:00:46.5]} 36. Rf2
{[%clk 0:00:03.8]} 36... Rb2 {[%clk 0:00:41.9]} 37. Ree2 {[%clk 0:00:03]} 37...
Rxe2 {[%clk 0:00:39.3]} 38. Qxe2 {[%clk 0:00:02.6]} 38... h5 {[%clk 0:00:37.8]}
39. Rf5 {[%clk 0:00:01.8]} 39... e4 {[%clk 0:00:35.5]} 40. Qe3 {[%clk
0:00:01.3]} 40... Rd8 {[%clk 0:00:27.6]} 41. Rf2 {[%clk 0:00:01.6]} 41... Rd3
{[%clk 0:00:26.7]} 42. Qg5 {[%clk 0:00:02]} 42... e3 {[%clk 0:00:23.9]} 43. Re2
{[%clk 0:00:02.5]} 43... Qe4 {[%clk 0:00:20.4]} 44. Bf5 {[%clk 0:00:02.8]} 44...
Ng4+ {[%clk 0:00:16.3]} 45. Qxg4 {[%clk 0:00:02.5]} 45... Qxg4 {[%clk
0:00:12.4]} 46. Bxg4 {[%clk 0:00:02.5]} 46... hxg4 {[%clk 0:00:12.6]} 47. c5
{[%clk 0:00:02.9]} 47... Kf8 {[%clk 0:00:12.2]} 48. c6 {[%clk 0:00:03.5]} 48...
Ke7 {[%clk 0:00:12.2]} 0-1

[Event "Late-Titled-Tuesday-Blitz-March-26-2024"]
[Site "Chess.com"]
[Date "2024.03.26"]
[Round "3"]
[White "mitrabhaa"]
[Black "kids2010"]
[Result "1-0"]
[WhiteElo "3066"]
[BlackElo "2802"]
[TimeControl "180+1"]
[EndTime "14:30:20 PDT"]
[Termination "mitrabhaa won by checkmate"]

1. Nf3 {[%clk 0:03:00.9]} 1... d5 {[%clk 0:02:50.6]} 2. c4 {[%clk 0:03:00.7]}
2... e6 {[%clk 0:02:48.7]} 3. e3 {[%clk 0:02:59.2]} 3... Nf6 {[%clk 0:02:43.9]}
4. b3 {[%clk 0:02:58.9]} 4... Be7 {[%clk 0:02:40.3]} 5. Bb2 {[%clk 0:02:58.4]}
5... O-O {[%clk 0:02:39.2]} 6. Nc3 {[%clk 0:02:58.3]} 6... c5 {[%clk 0:02:38.9]}
7. cxd5 {[%clk 0:02:57.2]} 7... exd5 {[%clk 0:02:38.9]} 8. Rc1 {[%clk
0:02:56.7]} 8... Nc6 {[%clk 0:02:38.8]} 9. Bb5 {[%clk 0:02:55.2]} 9... d4 {[%clk
0:02:22.8]} 10. Ne2 {[%clk 0:02:51.3]} 10... d3 {[%clk 0:02:14.1]} 11. Ng3
{[%clk 0:02:17.1]} 11... Nb4 {[%clk 0:02:13]} 12. a3 {[%clk 0:01:51.9]} 12...
Nc2+ {[%clk 0:02:09.6]} 13. Rxc2 {[%clk 0:01:51.9]} 13... dxc2 {[%clk
0:02:10.5]} 14. Qxc2 {[%clk 0:01:52.8]} 14... h6 {[%clk 0:01:55.5]} 15. h4
{[%clk 0:01:47.9]} 15... Bg4 {[%clk 0:01:48.2]} 16. Ng5 {[%clk 0:01:43.6]} 16...
g6 {[%clk 0:01:29.1]} 17. Bc4 {[%clk 0:01:29.6]} 17... Kg7 {[%clk 0:01:17.7]}
18. f3 {[%clk 0:01:23.9]} 18... b5 {[%clk 0:00:45.9]} 19. Bxb5 {[%clk
0:00:28.6]} 19... Bd7 {[%clk 0:00:19.8]} 20. Bxd7 {[%clk 0:00:18.1]} 20... Qxd7
{[%clk 0:00:20.7]} 21. Nh5+ {[%clk 0:00:16.1]} 21... Kg8 {[%clk 0:00:13]} 22.
Nxf6+ {[%clk 0:00:13.9]} 22... Bxf6 {[%clk 0:00:12.6]} 23. Bxf6 {[%clk
0:00:14.5]} 23... Rfe8 {[%clk 0:00:13]} 24. Ne4 {[%clk 0:00:10.9]} 24... Qf5
{[%clk 0:00:09.1]} 25. Bc3 {[%clk 0:00:10.8]} 25... Re6 {[%clk 0:00:07.4]} 26.
Bb2 {[%clk 0:00:07.2]} 26... Rc8 {[%clk 0:00:06.9]} 27. Qc3 {[%clk 0:00:07.6]}
27... f6 {[%clk 0:00:06]} 28. O-O {[%clk 0:00:07.6]} 28... Rf8 {[%clk
0:00:05.2]} 29. Qc4 {[%clk 0:00:07.3]} 29... Kh7 {[%clk 0:00:04.7]} 30. g4
{[%clk 0:00:06.8]} 30... Rxe4 {[%clk 0:00:03.2]} 31. gxf5 {[%clk 0:00:06]} 31...
Rxc4 {[%clk 0:00:03.1]} 32. fxg6+ {[%clk 0:00:06.8]} 32... Kxg6 {[%clk
0:00:03.9]} 33. bxc4 {[%clk 0:00:07.6]} 33... Rb8 {[%clk 0:00:03.8]} 34. Bc3
{[%clk 0:00:08.1]} 34... Rb3 {[%clk 0:00:04.7]} 35. Kf2 {[%clk 0:00:08.7]} 35...
Rxa3 {[%clk 0:00:04.9]} 36. Ra1 {[%clk 0:00:07.9]} 36... Ra2 {[%clk 0:00:05.8]}
37. Rxa2 {[%clk 0:00:07.4]} 37... a5 {[%clk 0:00:05.5]} 38. Rxa5 {[%clk
0:00:05.4]} 38... f5 {[%clk 0:00:06]} 39. Rxc5 {[%clk 0:00:06.1]} 39... Kf7
{[%clk 0:00:04.3]} 40. Rxf5+ {[%clk 0:00:05.1]} 40... Kg6 {[%clk 0:00:05.2]} 41.
Re5 {[%clk 0:00:05.4]} 41... Kf7 {[%clk 0:00:05.5]} 42. c5 {[%clk 0:00:06.3]}
42... Kg6 {[%clk 0:00:05.9]} 43. c6 {[%clk 0:00:07.2]} 43... Kf6 {[%clk
0:00:06.8]} 44. c7 {[%clk 0:00:07.8]} 44... Kf7 {[%clk 0:00:07.7]} 45. c8=Q
{[%clk 0:00:08.3]} 45... Kg6 {[%clk 0:00:08.6]} 46. Qc6+ {[%clk 0:00:07.9]}
46... Kh7 {[%clk 0:00:08.7]} 47. Re7+ {[%clk 0:00:08.3]} 47... Kg8 {[%clk
0:00:09.6]} 48. Qe8# {[%clk 0:00:08.2]} 1-0